{"text_format":"1","workbook":"xlsx","n_sheets":2,"sheets":["Data Table","Chart"],"not_rendered":{"charts":1,"images":0,"macros":1,"external_links":0,"defined_names":0,"comments":0,"pivot_tables":0},"unopened":[],"bounds":{"document_bytes":16777216,"sheet_cells":100000,"rows_first":2000,"rows_last":500,"rows_between":2000,"halvings":0,"cell_chars":16384,"cell_head_chars":4096},"cells_cut":0,"cells_raw":0,"read":"whole","date_system":"1900"}

{"sheet":"Data Table","index":0,"n_rows":48,"n_cols":8,"rows_kept":48,"cut":false,"hidden":false,"merged":[[1,1,1,5]]}
[]
[null,"YEAR END SHIPPING DEADLINES Timeline"]
[]
[]
[null,"Major Shipping Carriers & Popular Stores","DATE","DAY","DEADLINE","Height"]
[null,"UPS","2016-12-18",{"$f":"UPPER(TEXT(Table1[[#This Row],[DATE]],\"dddd\"))","v":"SUNDAY"}," 3 Day Select.",200,null,{"$f":"Table1[[#This Row],[Major Shipping Carriers & Popular Stores]] & \"  - \" & Table1[[#This Row],[DEADLINE]]","v":"UPS  -  3 Day Select."}]
[null,"UPS","2016-12-22",{"$f":"UPPER(TEXT(Table1[[#This Row],[DATE]],\"dddd\"))","v":"THURSDAY"}," 2nd Day Air.",200,null,{"$f":"Table1[[#This Row],[Major Shipping Carriers & Popular Stores]] & \"  - \" & Table1[[#This Row],[DEADLINE]]","v":"UPS  -  2nd Day Air."}]
[null,"UPS","2016-12-23",{"$f":"UPPER(TEXT(Table1[[#This Row],[DATE]],\"dddd\"))","v":"FRIDAY"}," Next Day Air.",220,null,{"$f":"Table1[[#This Row],[Major Shipping Carriers & Popular Stores]] & \"  - \" & Table1[[#This Row],[DEADLINE]]","v":"UPS  -  Next Day Air."}]
[null,"USPS","2016-12-15",{"$f":"UPPER(TEXT(Table1[[#This Row],[DATE]],\"dddd\"))","v":"THURSDAY"}," Standard Parcel Post (Mail). Get your Christmas Cards off by today.",-200,null,{"$f":"Table1[[#This Row],[Major Shipping Carriers & Popular Stores]] & \"  - \" & Table1[[#This Row],[DEADLINE]]","v":"USPS  -  Standard Parcel Post (Mail). Get your Christmas Cards off by today."}]
[null,"USPS","2016-12-20",{"$f":"UPPER(TEXT(Table1[[#This Row],[DATE]],\"dddd\"))","v":"TUESDAY"}," First Class Mail and Priority Mail.",-200,null,{"$f":"Table1[[#This Row],[Major Shipping Carriers & Popular Stores]] & \"  - \" & Table1[[#This Row],[DEADLINE]]","v":"USPS  -  First Class Mail and Priority Mail."}]
[null,"USPS","2016-12-23",{"$f":"UPPER(TEXT(Table1[[#This Row],[DATE]],\"dddd\"))","v":"FRIDAY"}," Priority Express Mail.",-200,null,{"$f":"Table1[[#This Row],[Major Shipping Carriers & Popular Stores]] & \"  - \" & Table1[[#This Row],[DEADLINE]]","v":"USPS  -  Priority Express Mail."}]
[null,"FEDEX","2016-12-12",{"$f":"UPPER(TEXT(Table1[[#This Row],[DATE]],\"dddd\"))","v":"MONDAY"}," SmartPost.",180,null,{"$f":"Table1[[#This Row],[Major Shipping Carriers & Popular Stores]] & \"  - \" & Table1[[#This Row],[DEADLINE]]","v":"FEDEX  -  SmartPost."}]
[null,"FEDEX","2016-12-17",{"$f":"UPPER(TEXT(Table1[[#This Row],[DATE]],\"dddd\"))","v":"SATURDAY"}," Home Delivery and Ground Delivery.",140,null,{"$f":"Table1[[#This Row],[Major Shipping Carriers & Popular Stores]] & \"  - \" & Table1[[#This Row],[DEADLINE]]","v":"FEDEX  -  Home Delivery and Ground Delivery."}]
[null,"FEDEX","2016-12-20",{"$f":"UPPER(TEXT(Table1[[#This Row],[DATE]],\"dddd\"))","v":"TUESDAY"}," Express Save.",160,null,{"$f":"Table1[[#This Row],[Major Shipping Carriers & Popular Stores]] & \"  - \" & Table1[[#This Row],[DEADLINE]]","v":"FEDEX  -  Express Save."}]
[null,"FEDEX","2016-12-22",{"$f":"UPPER(TEXT(Table1[[#This Row],[DATE]],\"dddd\"))","v":"THURSDAY"}," 2-Day and 2-Day A.M..",180,null,{"$f":"Table1[[#This Row],[Major Shipping Carriers & Popular Stores]] & \"  - \" & Table1[[#This Row],[DEADLINE]]","v":"FEDEX  -  2-Day and 2-Day A.M.."}]
[null,"FEDEX","2016-12-23",{"$f":"UPPER(TEXT(Table1[[#This Row],[DATE]],\"dddd\"))","v":"FRIDAY"}," Standard Overnight, Priority Overnight, First Overnight.",130,null,{"$f":"Table1[[#This Row],[Major Shipping Carriers & Popular Stores]] & \"  - \" & Table1[[#This Row],[DEADLINE]]","v":"FEDEX  -  Standard Overnight, Priority Overnight, First Overnight."}]
[null,"FEDEX","2016-12-25",{"$f":"UPPER(TEXT(Table1[[#This Row],[DATE]],\"dddd\"))","v":"SUNDAY"}," SameDay.",30,null,{"$f":"Table1[[#This Row],[Major Shipping Carriers & Popular Stores]] & \"  - \" & Table1[[#This Row],[DEADLINE]]","v":"FEDEX  -  SameDay."}]
[null,"AMAZON","2016-12-18",{"$f":"UPPER(TEXT(Table1[[#This Row],[DATE]],\"dddd\"))","v":"SUNDAY"}," Standard.",-180,null,{"$f":"Table1[[#This Row],[Major Shipping Carriers & Popular Stores]] & \"  - \" & Table1[[#This Row],[DEADLINE]]","v":"AMAZON  -  Standard."}]
[null,"AMAZON","2016-12-22",{"$f":"UPPER(TEXT(Table1[[#This Row],[DATE]],\"dddd\"))","v":"THURSDAY"}," Express.",-180,null,{"$f":"Table1[[#This Row],[Major Shipping Carriers & Popular Stores]] & \"  - \" & Table1[[#This Row],[DEADLINE]]","v":"AMAZON  -  Express."}]
[null,"AMAZON","2016-12-23",{"$f":"UPPER(TEXT(Table1[[#This Row],[DATE]],\"dddd\"))","v":"FRIDAY"}," Fastest",-170,null,{"$f":"Table1[[#This Row],[Major Shipping Carriers & Popular Stores]] & \"  - \" & Table1[[#This Row],[DEADLINE]]","v":"AMAZON  -  Fastest"}]
[null,"WALMART","2016-12-19",{"$f":"UPPER(TEXT(Table1[[#This Row],[DATE]],\"dddd\"))","v":"MONDAY"}," Guaranteed Christmas Eve delivery with Standard.",80,null,{"$f":"Table1[[#This Row],[Major Shipping Carriers & Popular Stores]] & \"  - \" & Table1[[#This Row],[DEADLINE]]","v":"WALMART  -  Guaranteed Christmas Eve delivery with Standard."}]
[null,"WALMART","2016-12-22",{"$f":"UPPER(TEXT(Table1[[#This Row],[DATE]],\"dddd\"))","v":"THURSDAY"}," 3-Day.",100,null,{"$f":"Table1[[#This Row],[Major Shipping Carriers & Popular Stores]] & \"  - \" & Table1[[#This Row],[DEADLINE]]","v":"WALMART  -  3-Day."}]
[null,"WALMART","2016-12-23",{"$f":"UPPER(TEXT(Table1[[#This Row],[DATE]],\"dddd\"))","v":"FRIDAY"}," 2-Day.",160,null,{"$f":"Table1[[#This Row],[Major Shipping Carriers & Popular Stores]] & \"  - \" & Table1[[#This Row],[DEADLINE]]","v":"WALMART  -  2-Day."}]
[null,"TARGET","2016-12-17",{"$f":"UPPER(TEXT(Table1[[#This Row],[DATE]],\"dddd\"))","v":"SATURDAY"}," Standard.",-160,null,{"$f":"Table1[[#This Row],[Major Shipping Carriers & Popular Stores]] & \"  - \" & Table1[[#This Row],[DEADLINE]]","v":"TARGET  -  Standard."}]
[null,"TARGET","2016-12-22",{"$f":"UPPER(TEXT(Table1[[#This Row],[DATE]],\"dddd\"))","v":"THURSDAY"}," Premium.",-160,null,{"$f":"Table1[[#This Row],[Major Shipping Carriers & Popular Stores]] & \"  - \" & Table1[[#This Row],[DEADLINE]]","v":"TARGET  -  Premium."}]
[null,"TARGET","2016-12-23",{"$f":"UPPER(TEXT(Table1[[#This Row],[DATE]],\"dddd\"))","v":"FRIDAY"}," Express.",-60,null,{"$f":"Table1[[#This Row],[Major Shipping Carriers & Popular Stores]] & \"  - \" & Table1[[#This Row],[DEADLINE]]","v":"TARGET  -  Express."}]
[null,"BEST BUY","2016-12-22",{"$f":"UPPER(TEXT(Table1[[#This Row],[DATE]],\"dddd\"))","v":"THURSDAY"}," Expedited",80,null,{"$f":"Table1[[#This Row],[Major Shipping Carriers & Popular Stores]] & \"  - \" & Table1[[#This Row],[DEADLINE]]","v":"BEST BUY  -  Expedited"}]
[null,"BEST BUY","2016-12-23",{"$f":"UPPER(TEXT(Table1[[#This Row],[DATE]],\"dddd\"))","v":"FRIDAY"}," Express.",110,null,{"$f":"Table1[[#This Row],[Major Shipping Carriers & Popular Stores]] & \"  - \" & Table1[[#This Row],[DEADLINE]]","v":"BEST BUY  -  Express."}]
[null,"BEST BUY","2016-12-24",{"$f":"UPPER(TEXT(Table1[[#This Row],[DATE]],\"dddd\"))","v":"SATURDAY"}," Store Pickup",70,null,{"$f":"Table1[[#This Row],[Major Shipping Carriers & Popular Stores]] & \"  - \" & Table1[[#This Row],[DEADLINE]]","v":"BEST BUY  -  Store Pickup"}]
[null,"BEST BUY","2016-12-25",{"$f":"UPPER(TEXT(Table1[[#This Row],[DATE]],\"dddd\"))","v":"SUNDAY"}," E-Gift Cards purchased at bestbuy.com",190,null,{"$f":"Table1[[#This Row],[Major Shipping Carriers & Popular Stores]] & \"  - \" & Table1[[#This Row],[DEADLINE]]","v":"BEST BUY  -  E-Gift Cards purchased at bestbuy.com"}]
[null,"TOYS R US","2016-12-19",{"$f":"UPPER(TEXT(Table1[[#This Row],[DATE]],\"dddd\"))","v":"MONDAY"}," Standard.",-140,null,{"$f":"Table1[[#This Row],[Major Shipping Carriers & Popular Stores]] & \"  - \" & Table1[[#This Row],[DEADLINE]]","v":"TOYS R US  -  Standard."}]
[null,"TOYS R US","2016-12-22",{"$f":"UPPER(TEXT(Table1[[#This Row],[DATE]],\"dddd\"))","v":"THURSDAY"}," Expedited.",-190,null,{"$f":"Table1[[#This Row],[Major Shipping Carriers & Popular Stores]] & \"  - \" & Table1[[#This Row],[DEADLINE]]","v":"TOYS R US  -  Expedited."}]
[null,"TOYS R US","2016-12-23",{"$f":"UPPER(TEXT(Table1[[#This Row],[DATE]],\"dddd\"))","v":"FRIDAY"}," Express.",-220,null,{"$f":"Table1[[#This Row],[Major Shipping Carriers & Popular Stores]] & \"  - \" & Table1[[#This Row],[DEADLINE]]","v":"TOYS R US  -  Express."}]
[null,"TOYS R US","2016-12-24",{"$f":"UPPER(TEXT(Table1[[#This Row],[DATE]],\"dddd\"))","v":"SATURDAY"}," Free in-store pickup is available.",-150,null,{"$f":"Table1[[#This Row],[Major Shipping Carriers & Popular Stores]] & \"  - \" & Table1[[#This Row],[DEADLINE]]","v":"TOYS R US  -  Free in-store pickup is available."}]
[null,"KOHL'S","2016-12-22",{"$f":"UPPER(TEXT(Table1[[#This Row],[DATE]],\"dddd\"))","v":"THURSDAY"}," 1-day.",10,null,{"$f":"Table1[[#This Row],[Major Shipping Carriers & Popular Stores]] & \"  - \" & Table1[[#This Row],[DEADLINE]]","v":"KOHL'S  -  1-day."}]
[null,"NEWEGG","2016-12-14",{"$f":"UPPER(TEXT(Table1[[#This Row],[DATE]],\"dddd\"))","v":"WEDNESDAY"}," Super Eggsaver.",-120,null,{"$f":"Table1[[#This Row],[Major Shipping Carriers & Popular Stores]] & \"  - \" & Table1[[#This Row],[DEADLINE]]","v":"NEWEGG  -  Super Eggsaver."}]
[null,"NEWEGG","2016-12-16",{"$f":"UPPER(TEXT(Table1[[#This Row],[DATE]],\"dddd\"))","v":"FRIDAY"}," Large items.",-60,null,{"$f":"Table1[[#This Row],[Major Shipping Carriers & Popular Stores]] & \"  - \" & Table1[[#This Row],[DEADLINE]]","v":"NEWEGG  -  Large items."}]
[null,"NEWEGG","2016-12-21",{"$f":"UPPER(TEXT(Table1[[#This Row],[DATE]],\"dddd\"))","v":"WEDNESDAY"}," Business 3-day.",-70,null,{"$f":"Table1[[#This Row],[Major Shipping Carriers & Popular Stores]] & \"  - \" & Table1[[#This Row],[DEADLINE]]","v":"NEWEGG  -  Business 3-day."}]
[null,"NEWEGG","2016-12-22",{"$f":"UPPER(TEXT(Table1[[#This Row],[DATE]],\"dddd\"))","v":"THURSDAY"}," Business 2-day.",-40,null,{"$f":"Table1[[#This Row],[Major Shipping Carriers & Popular Stores]] & \"  - \" & Table1[[#This Row],[DEADLINE]]","v":"NEWEGG  -  Business 2-day."}]
[null,"NEWEGG","2016-12-23",{"$f":"UPPER(TEXT(Table1[[#This Row],[DATE]],\"dddd\"))","v":"FRIDAY"}," Business 1-day.",-130,null,{"$f":"Table1[[#This Row],[Major Shipping Carriers & Popular Stores]] & \"  - \" & Table1[[#This Row],[DEADLINE]]","v":"NEWEGG  -  Business 1-day."}]
[null,"APPLE","2016-12-22",{"$f":"UPPER(TEXT(Table1[[#This Row],[DATE]],\"dddd\"))","v":"THURSDAY"}," Free Standard.",-120,null,{"$f":"Table1[[#This Row],[Major Shipping Carriers & Popular Stores]] & \"  - \" & Table1[[#This Row],[DEADLINE]]","v":"APPLE  -  Free Standard."}]
[null,"APPLE","2016-12-23",{"$f":"UPPER(TEXT(Table1[[#This Row],[DATE]],\"dddd\"))","v":"FRIDAY"}," Next Day Guarantee.",-100,null,{"$f":"Table1[[#This Row],[Major Shipping Carriers & Popular Stores]] & \"  - \" & Table1[[#This Row],[DEADLINE]]","v":"APPLE  -  Next Day Guarantee."}]
[null,"DELL","2016-12-18",{"$f":"UPPER(TEXT(Table1[[#This Row],[DATE]],\"dddd\"))","v":"SUNDAY"}," Standard.",-100,null,{"$f":"Table1[[#This Row],[Major Shipping Carriers & Popular Stores]] & \"  - \" & Table1[[#This Row],[DEADLINE]]","v":"DELL  -  Standard."}]
[null,"DELL","2016-12-22",{"$f":"UPPER(TEXT(Table1[[#This Row],[DATE]],\"dddd\"))","v":"THURSDAY"}," Express.",-90,null,{"$f":"Table1[[#This Row],[Major Shipping Carriers & Popular Stores]] & \"  - \" & Table1[[#This Row],[DEADLINE]]","v":"DELL  -  Express."}]
[null,"DELL","2016-12-23",{"$f":"UPPER(TEXT(Table1[[#This Row],[DATE]],\"dddd\"))","v":"FRIDAY"}," Fastest.",-80,null,{"$f":"Table1[[#This Row],[Major Shipping Carriers & Popular Stores]] & \"  - \" & Table1[[#This Row],[DEADLINE]]","v":"DELL  -  Fastest."}]
[null,"MACY'S","2016-12-22",{"$f":"UPPER(TEXT(Table1[[#This Row],[DATE]],\"dddd\"))","v":"THURSDAY"}," Standard 2-day.",40,null,{"$f":"Table1[[#This Row],[Major Shipping Carriers & Popular Stores]] & \"  - \" & Table1[[#This Row],[DEADLINE]]","v":"MACY'S  -  Standard 2-day."}]
[null,"MACY'S","2016-12-23",{"$f":"UPPER(TEXT(Table1[[#This Row],[DATE]],\"dddd\"))","v":"FRIDAY"}," Express.",20,null,{"$f":"Table1[[#This Row],[Major Shipping Carriers & Popular Stores]] & \"  - \" & Table1[[#This Row],[DEADLINE]]","v":"MACY'S  -  Express."}]
[null,null,"2016-12-26",{"$f":"UPPER(TEXT(Table1[[#This Row],[DATE]],\"dddd\"))","v":"MONDAY"}]

{"sheet":"Chart","index":1,"n_rows":2,"n_cols":2,"rows_kept":2,"cut":false,"hidden":false,"merged":[[1,1,1,21]]}
[]
[null,"TIMELINE CHART"]